[Event "Live Chess"]
[Site "Chess.com"]
[Date "2024.06.01"]
[Round "-"]
[White "Delacorta"]
[Black "IanCalvert2"]
[Result "1-0"]
[WhiteElo "1528"]
[BlackElo "1520"]
[TimeControl "300"]
[EndTime "13:02:50 PDT"]
[Termination "Delacorta won on time"]

1. d4 {[%clk 0:04:56.2]} 1... d5 {[%clk 0:04:58.8]} 2. Nf3 {[%clk 0:04:55.6]}
2... Nf6 {[%clk 0:04:57.4]} 3. e3 {[%clk 0:04:55]} 3... c6 {[%clk 0:04:55.6]} 4.
Bd3 {[%clk 0:04:54.4]} 4... Bg4 {[%clk 0:04:53.9]} 5. Nbd2 {[%clk 0:04:52.2]}
5... e6 {[%clk 0:04:52.4]} 6. b3 {[%clk 0:04:51.3]} 6... Nbd7 {[%clk 0:04:48.6]}
7. Bb2 {[%clk 0:04:50.3]} 7... Bd6 {[%clk 0:04:47.5]} 8. O-O {[%clk 0:04:49.3]}
8... O-O {[%clk 0:04:46.1]} 9. c4 {[%clk 0:04:48.4]} 9... e5 {[%clk 0:04:41.2]}
10. dxe5 {[%clk 0:04:39]} 10... Nxe5 {[%clk 0:04:37]} 11. Be2 {[%clk 0:04:35.1]}
11... Nxf3+ {[%clk 0:04:18.6]} 12. Bxf3 {[%clk 0:04:31.8]} 12... Bxf3 {[%clk
0:04:06.3]} 13. Nxf3 {[%clk 0:04:30]} 13... dxc4 {[%clk 0:03:52.5]} 14. bxc4
{[%clk 0:04:24.7]} 14... Qe7 {[%clk 0:03:50.9]} 15. Qc2 {[%clk 0:04:11.2]} 15...
Rfe8 {[%clk 0:03:41.4]} 16. Rad1 {[%clk 0:03:57.7]} 16... Rad8 {[%clk
0:03:36.4]} 17. Rd2 {[%clk 0:03:46.9]} 17... Bc7 {[%clk 0:03:15.5]} 18. Rfd1
{[%clk 0:03:43.4]} 18... Rxd2 {[%clk 0:03:11.1]} 19. Rxd2 {[%clk 0:03:40.3]}
19... Rd8 {[%clk 0:03:08.2]} 20. Rxd8+ {[%clk 0:03:34.4]} 20... Qxd8 {[%clk
0:03:04.9]} 21. Qd2 {[%clk 0:03:31]} 21... Qxd2 {[%clk 0:02:57.1]} 22. Nxd2
{[%clk 0:03:30.9]} 22... Nd7 {[%clk 0:02:55.1]} 23. g3 {[%clk 0:03:27.4]} 23...
Be5 {[%clk 0:02:30.2]} 24. Bxe5 {[%clk 0:03:22.5]} 24... Nxe5 {[%clk 0:02:28.2]}
25. Kg2 {[%clk 0:03:21.3]} 25... Kf8 {[%clk 0:02:24.1]} 26. f4 {[%clk
0:03:17.6]} 26... Nd3 {[%clk 0:02:20.6]} 27. Kf3 {[%clk 0:03:11.2]} 27... Nb4
{[%clk 0:02:18.2]} 28. a3 {[%clk 0:03:03.9]} 28... Nc2 {[%clk 0:02:11.2]} 29. a4
{[%clk 0:03:02]} 29... Ke7 {[%clk 0:02:04.2]} 30. Ke4 {[%clk 0:03:01]} 30... Kd6
{[%clk 0:02:03.1]} 31. Kd3 {[%clk 0:02:48.9]} 31... Nb4+ {[%clk 0:01:56.5]} 32.
Kd4 {[%clk 0:02:48]} 32... c5+ {[%clk 0:01:40.3]} 33. Ke4 {[%clk 0:02:44.3]}
33... Kc6 {[%clk 0:01:34.4]} 34. Nb1 {[%clk 0:02:30.5]} 34... Na2 {[%clk
0:01:21.4]} 35. Ke5 {[%clk 0:02:22]} 35... a6 {[%clk 0:01:17.3]} 36. e4 {[%clk
0:02:18.1]} 36... b5 {[%clk 0:01:13.9]} 37. cxb5+ {[%clk 0:02:03.7]} 37... axb5
{[%clk 0:01:11.8]} 38. axb5+ {[%clk 0:01:57.5]} 38... Kxb5 {[%clk 0:01:10.2]}
39. Kd5 {[%clk 0:01:46.1]} 39... Nb4+ {[%clk 0:01:00.1]} 40. Kd6 {[%clk
0:01:40.2]} 40... Kc4 {[%clk 0:00:57]} 41. Ke7 {[%clk 0:01:37.4]} 41... Kd4
{[%clk 0:00:45.5]} 42. e5 {[%clk 0:01:28.4]} 42... f5 {[%clk 0:00:42.6]} 43. e6
{[%clk 0:01:23.2]} 43... Ke4 {[%clk 0:00:19.2]} 44. Kd6 {[%clk 0:01:17.2]} 44...
Nd5 {[%clk 0:00:13.4]} 45. Kxc5 {[%clk 0:01:06.4]} 45... Ne7 {[%clk 0:00:08.3]}
46. Kd6 {[%clk 0:01:04.3]} 46... Ng6 {[%clk 0:00:06.8]} 47. e7 {[%clk
0:01:01.2]} 47... Nxe7 {[%clk 0:00:04.9]} 48. Kxe7 {[%clk 0:01:00.2]} 48... Kf3
{[%clk 0:00:04.3]} 49. Kf7 {[%clk 0:00:55.2]} 49... Kg2 {[%clk 0:00:03]} 50.
Kxg7 {[%clk 0:00:52.7]} 50... Kxh2 {[%clk 0:00:01.9]} 51. Kf6 {[%clk 0:00:51.7]}
51... Kxg3 {[%clk 0:00:00.9]} 52. Kxf5 {[%clk 0:00:50.8]} 1-0

[Event "Live Chess"]
[Site "Chess.com"]
[Date "2024.06.01"]
[Round "-"]
[White "Cruiseylee78"]
[Black "MaximKovalenko83"]
[Result "0-1"]
[WhiteElo "1680"]
[BlackElo "2238"]
[TimeControl "300"]
[EndTime "13:02:52 PDT"]
[Termination "MaximKovalenko83 won by resignation"]

1. d4 {[%clk 0:04:58.3]} 1... d5 {[%clk 0:04:58.6]} 2. Bf4 {[%clk 0:04:57.2]}
2... c5 {[%clk 0:04:57.5]} 3. e3 {[%clk 0:04:56.5]} 3... Nc6 {[%clk 0:04:56.8]}
4. Nf3 {[%clk 0:04:55]} 4... Nf6 {[%clk 0:04:56.7]} 5. c3 {[%clk 0:04:53]} 5...
Bg4 {[%clk 0:04:56.2]} 6. Nbd2 {[%clk 0:04:51.3]} 6... e6 {[%clk 0:04:55.6]} 7.
Bd3 {[%clk 0:04:50.4]} 7... Bd6 {[%clk 0:04:54.2]} 8. Bg3 {[%clk 0:04:49.2]}
8... O-O {[%clk 0:04:52.5]} 9. Qc2 {[%clk 0:04:48.8]} 9... Rc8 {[%clk
0:04:50.6]} 10. b3 {[%clk 0:04:45]} 10... cxd4 {[%clk 0:04:47.8]} 11. exd4
{[%clk 0:04:43.9]} 11... Nb4 {[%clk 0:04:46.3]} 12. Qb1 {[%clk 0:04:41.9]} 12...
Rxc3 {[%clk 0:04:43.5]} 13. a3 {[%clk 0:04:36.4]} 13... Nxd3+ {[%clk 0:04:41.3]}
14. Kf1 {[%clk 0:04:31.5]} 14... Rc1+ {[%clk 0:04:39.8]} 15. Qxc1 {[%clk
0:04:24.8]} 15... Nxc1 {[%clk 0:04:39.7]} 16. Rxc1 {[%clk 0:04:24.6]} 16... Bxg3
{[%clk 0:04:38]} 0-1

[Event "Live Chess"]
[Site "Chess.com"]
[Date "2024.06.01"]
[Round "-"]
[White "Frankie_Badacsonyi"]
[Black "uselessduffer"]
[Result "1/2-1/2"]
[WhiteElo "2440"]
[BlackElo "2431"]
[TimeControl "300"]
[EndTime "13:02:57 PDT"]
[Termination "Game drawn by agreement"]

1. d4 {[%clk 0:04:58.3]} 1... Nf6 {[%clk 0:04:57.7]} 2. Bg5 {[%clk 0:04:57.3]}
2... e6 {[%clk 0:04:56.5]} 3. Nd2 {[%clk 0:04:56.2]} 3... c5 {[%clk 0:04:50.6]}
4. e3 {[%clk 0:04:54.8]} 4... Be7 {[%clk 0:04:44.2]} 5. c3 {[%clk 0:04:53.7]}
5... b6 {[%clk 0:04:42.9]} 6. Ngf3 {[%clk 0:04:48.8]} 6... Bb7 {[%clk
0:04:41.8]} 7. Bd3 {[%clk 0:04:48]} 7... d5 {[%clk 0:04:26.9]} 8. O-O {[%clk
0:04:46.8]} 8... Nbd7 {[%clk 0:04:20]} 9. Qe2 {[%clk 0:04:35.4]} 9... O-O {[%clk
0:04:11]} 10. Ne5 {[%clk 0:04:23.4]} 10... Nxe5 {[%clk 0:03:51.6]} 11. dxe5
{[%clk 0:04:23.3]} 11... Nd7 {[%clk 0:03:50.8]} 12. Bxe7 {[%clk 0:04:22]} 12...
Qxe7 {[%clk 0:03:50.7]} 13. f4 {[%clk 0:04:21.5]} 13... f6 {[%clk 0:03:46.6]}
14. exf6 {[%clk 0:04:16.4]} 14... Nxf6 {[%clk 0:03:37.9]} 15. e4 {[%clk
0:04:15.1]} 15... dxe4 {[%clk 0:03:05.2]} 16. Nxe4 {[%clk 0:04:15]} 16... Bxe4
{[%clk 0:03:03.1]} 17. Bxe4 {[%clk 0:04:14.9]} 17... Rad8 {[%clk 0:02:52.7]} 18.
Rae1 {[%clk 0:04:12.4]} 18... Rfe8 {[%clk 0:02:47.9]} 19. Bc6 {[%clk 0:04:06.5]}
19... Rf8 {[%clk 0:02:46.4]} 20. Qxe6+ {[%clk 0:04:01]} 20... Qxe6 {[%clk
0:02:45.4]} 21. Rxe6 {[%clk 0:04:00.9]} 21... Rd2 {[%clk 0:02:43.4]} 22. b4
{[%clk 0:03:45.3]} 22... Kf7 {[%clk 0:02:24.3]} 23. Ree1 {[%clk 0:03:30.8]}
23... cxb4 {[%clk 0:02:17.1]} 24. cxb4 {[%clk 0:03:29.3]} 24... Rxa2 {[%clk
0:02:15.7]} 25. Ra1 {[%clk 0:03:17.9]} 25... Rxa1 {[%clk 0:02:04.9]} 26. Rxa1
{[%clk 0:03:17.8]} 26... a5 {[%clk 0:02:04.4]} 27. bxa5 {[%clk 0:03:15.8]} 27...
bxa5 {[%clk 0:02:04.3]} 28. Rxa5 {[%clk 0:03:14.5]} 28... Rd8 {[%clk 0:02:00.4]}
29. Bf3 {[%clk 0:03:07.5]} 29... Rd4 {[%clk 0:01:56.1]} 30. g3 {[%clk
0:03:03.8]} 30... Rd2 {[%clk 0:01:54.8]} 31. Ra1 {[%clk 0:02:55.8]} 31... h6
{[%clk 0:01:52.3]} 32. Re1 {[%clk 0:02:54.4]} 32... g5 {[%clk 0:01:44]} 33. f5
{[%clk 0:02:46.9]} 33... g4 {[%clk 0:01:38.4]} 34. Bg2 {[%clk 0:02:42.3]} 34...
Rc2 {[%clk 0:01:27.8]} 35. Ra1 {[%clk 0:02:38.4]} 35... Rc5 {[%clk 0:01:05.5]}
36. Rf1 {[%clk 0:02:28.7]} 36... h5 {[%clk 0:01:04.2]} 37. h3 {[%clk 0:02:24.4]}
37... gxh3 {[%clk 0:01:03]} 38. Bxh3 {[%clk 0:02:24.3]} 38... Kg7 {[%clk
0:01:02.6]} 39. Rf2 {[%clk 0:02:20.7]} 39... Kh6 {[%clk 0:01:01.7]} 40. Kg2
{[%clk 0:02:16]} 40... Kg5 {[%clk 0:01:00.9]} 41. Re2 {[%clk 0:02:11.7]} 41...
Rc7 {[%clk 0:00:55.1]} 42. Ra2 {[%clk 0:02:05.8]} 42... Ng4 {[%clk 0:00:52.3]}
43. Bxg4 {[%clk 0:01:52.1]} 43... hxg4 {[%clk 0:00:49.9]} 44. Rb2 {[%clk
0:01:49.5]} 44... Rf7 {[%clk 0:00:47.1]} 45. Ra2 {[%clk 0:01:47.9]} 45... Rxf5
{[%clk 0:00:46.1]} 46. Rb2 {[%clk 0:01:45.4]} 1/2-1/2

[Event "Live Chess"]
[Site "Chess.com"]
[Date "2024.06.01"]
[Round "-"]
[White "MagnersCarlsberg2870"]
[Black "AndrewBak1"]
[Result "0-1"]
[WhiteElo "1811"]
[BlackElo "1836"]
[TimeControl "300"]
[EndTime "13:03:00 PDT"]
[Termination "AndrewBak1 won by resignation"]

1. e4 {[%clk 0:04:56.3]} 1... c5 {[%clk 0:04:56.2]} 2. d3 {[%clk 0:04:54.2]}
2... Nc6 {[%clk 0:04:54.7]} 3. Nd2 {[%clk 0:04:53.3]} 3... g6 {[%clk 0:04:54.1]}
4. Ngf3 {[%clk 0:04:52.6]} 4... Bg7 {[%clk 0:04:53.8]} 5. g3 {[%clk 0:04:52]}
5... e6 {[%clk 0:04:53.3]} 6. Bg2 {[%clk 0:04:51.4]} 6... d5 {[%clk 0:04:52.9]}
7. O-O {[%clk 0:04:50.2]} 7... Nf6 {[%clk 0:04:52.5]} 8. e5 {[%clk 0:04:48.2]}
8... Nd7 {[%clk 0:04:49.8]} 9. Re1 {[%clk 0:04:46.7]} 9... Ndxe5 {[%clk
0:04:46]} 10. Nxe5 {[%clk 0:04:45.3]} 10... Nxe5 {[%clk 0:04:45.9]} 11. f4
{[%clk 0:04:42.7]} 11... Nc6 {[%clk 0:04:43.6]} 12. Nf3 {[%clk 0:04:38.2]} 12...
O-O {[%clk 0:04:41.1]} 13. c3 {[%clk 0:04:36.6]} 13... Qb6 {[%clk 0:04:11.3]}
14. Kh1 {[%clk 0:04:33.3]} 14... Bd7 {[%clk 0:04:04.5]} 15. h4 {[%clk
0:04:32.3]} 15... h5 {[%clk 0:03:36.6]} 16. Ne5 {[%clk 0:04:29.7]} 16... Nxe5
{[%clk 0:03:34.1]} 17. fxe5 {[%clk 0:04:28.2]} 17... d4 {[%clk 0:03:28.3]} 18.
g4 {[%clk 0:04:26.1]} 18... hxg4 {[%clk 0:03:23.1]} 19. Qxg4 {[%clk 0:04:24.5]}
19... Bc6 {[%clk 0:03:22.6]} 20. h5 {[%clk 0:04:22.6]} 20... Bxg2+ {[%clk
0:03:21]} 21. Kxg2 {[%clk 0:04:21.1]} 21... gxh5 {[%clk 0:03:16.4]} 22. Bh6
{[%clk 0:04:19]} 22... hxg4 {[%clk 0:03:13]} 0-1

[Event "Live Chess"]
[Site "Chess.com"]
[Date "2024.06.01"]
[Round "-"]
[White "LL220284LL"]
[Black "defenderalist"]
[Result "1-0"]
[WhiteElo "2543"]
[BlackElo "1506"]
[TimeControl "300"]
[EndTime "13:03:06 PDT"]
[Termination "LL220284LL won by resignation"]

1. b3 {[%clk 0:04:57.6]} 1... e5 {[%clk 0:04:54.7]} 2. Bb2 {[%clk 0:04:55.8]}
2... d6 {[%clk 0:04:53.6]} 3. g3 {[%clk 0:04:54.5]} 3... Nc6 {[%clk 0:04:51.8]}
4. Bg2 {[%clk 0:04:53.2]} 4... Nf6 {[%clk 0:04:49.8]} 5. d3 {[%clk 0:04:52.5]}
5... Bd7 {[%clk 0:04:48.8]} 6. c4 {[%clk 0:04:51.8]} 6... Be7 {[%clk 0:04:46.3]}
7. Nc3 {[%clk 0:04:50.3]} 7... a6 {[%clk 0:04:43.6]} 8. e3 {[%clk 0:04:48.6]}
8... O-O {[%clk 0:04:41.2]} 9. Nge2 {[%clk 0:04:48]} 9... Bg4 {[%clk 0:04:39.3]}
10. Qd2 {[%clk 0:04:46.5]} 10... Qd7 {[%clk 0:04:37.8]} 11. h3 {[%clk 0:04:45]}
11... Bh5 {[%clk 0:04:34.2]} 12. g4 {[%clk 0:04:43.8]} 12... Bg6 {[%clk
0:04:33.3]} 13. Nd5 {[%clk 0:04:40.5]} 13... Nxd5 {[%clk 0:04:32]} 14. cxd5
{[%clk 0:04:38.2]} 14... Na7 {[%clk 0:04:29.4]} 15. e4 {[%clk 0:04:31.1]} 15...
c6 {[%clk 0:04:24.5]} 16. Nc3 {[%clk 0:04:27.3]} 16... b5 {[%clk 0:04:22.4]} 17.
dxc6 {[%clk 0:04:25.9]} 17... Nxc6 {[%clk 0:04:15.8]} 18. Nd5 {[%clk 0:04:25.6]}
18... Bd8 {[%clk 0:04:06.5]} 19. Rc1 {[%clk 0:04:20.5]} 19... Ne7 {[%clk
0:04:01.2]} 20. Ne3 {[%clk 0:04:15.5]} 20... d5 {[%clk 0:03:57.3]} 21. Bxe5
{[%clk 0:04:11.1]} 21... dxe4 {[%clk 0:03:53.8]} 22. dxe4 {[%clk 0:04:06.1]}
22... Qxd2+ {[%clk 0:03:48.9]} 23. Kxd2 {[%clk 0:04:06]} 23... Ba5+ {[%clk
0:03:46.4]} 24. Ke2 {[%clk 0:04:01]} 24... Rac8 {[%clk 0:03:42.2]} 25. Bd6
{[%clk 0:03:57.7]} 25... Rfe8 {[%clk 0:03:34.5]} 26. Bxe7 {[%clk 0:03:55.5]}
26... Rxc1 {[%clk 0:03:32.1]} 27. Rxc1 {[%clk 0:03:53.9]} 1-0

[Event "Live Chess"]
[Site "Chess.com"]
[Date "2024.06.01"]
[Round "-"]
[White "nffc11"]
[Black "StoreySniper"]
[Result "0-1"]
[WhiteElo "2018"]
[BlackElo "2531"]
[TimeControl "300"]
[EndTime "13:03:10 PDT"]
[Termination "StoreySniper won on time"]

1. d4 {[%clk 0:04:57.9]} 1... g6 {[%clk 0:04:58.7]} 2. Nf3 {[%clk 0:04:55.7]}
2... Bg7 {[%clk 0:04:58.2]} 3. g3 {[%clk 0:04:55]} 3... c5 {[%clk 0:04:57.7]} 4.
c3 {[%clk 0:04:53.6]} 4... cxd4 {[%clk 0:04:57]} 5. cxd4 {[%clk 0:04:53.5]} 5...
d5 {[%clk 0:04:56.4]} 6. Bg2 {[%clk 0:04:52.3]} 6... Nc6 {[%clk 0:04:55.9]} 7.
O-O {[%clk 0:04:51.2]} 7... Nf6 {[%clk 0:04:55.4]} 8. Nc3 {[%clk 0:04:49]} 8...
O-O {[%clk 0:04:54.9]} 9. Bf4 {[%clk 0:04:42.8]} 9... Ne4 {[%clk 0:04:48.1]} 10.
Rc1 {[%clk 0:04:38]} 10... Nxc3 {[%clk 0:04:45]} 11. Rxc3 {[%clk 0:04:35.4]}
11... Bf5 {[%clk 0:04:44.2]} 12. Ne5 {[%clk 0:04:26.1]} 12... Nxe5 {[%clk
0:04:37.8]} 13. Bxe5 {[%clk 0:04:20]} 13... Bxe5 {[%clk 0:04:34.7]} 14. dxe5
{[%clk 0:04:19.9]} 14... e6 {[%clk 0:04:27.8]} 15. e3 {[%clk 0:03:47.2]} 15...
h5 {[%clk 0:04:16.4]} 16. h3 {[%clk 0:03:42.5]} 16... Qb6 {[%clk 0:04:10.1]} 17.
g4 {[%clk 0:03:25.7]} 17... hxg4 {[%clk 0:04:07.8]} 18. hxg4 {[%clk 0:03:25.6]}
18... Be4 {[%clk 0:03:57.5]} 19. f3 {[%clk 0:03:11.9]} 19... Rac8 {[%clk
0:03:30.1]} 20. fxe4 {[%clk 0:02:49.6]} 20... Rxc3 {[%clk 0:03:28.1]} 21. bxc3
{[%clk 0:02:49.5]} 21... Qxe3+ {[%clk 0:03:27.1]} 22. Kh2 {[%clk 0:02:32.2]}
22... Kg7 {[%clk 0:03:17.6]} 23. Rf3 {[%clk 0:02:21.2]} 23... Rh8+ {[%clk
0:03:15.4]} 24. Rh3 {[%clk 0:01:55.7]} 24... Rxh3+ {[%clk 0:03:13.6]} 25. Bxh3
{[%clk 0:01:55.6]} 25... dxe4 {[%clk 0:03:10.9]} 26. Qf1 {[%clk 0:01:25.7]}
26... Kg8 {[%clk 0:02:52.5]} 27. Bg2 {[%clk 0:01:03.3]} 27... Qxc3 {[%clk
0:02:42.3]} 28. Qf6 {[%clk 0:00:52.9]} 28... Qd2 {[%clk 0:02:31.2]} 29. Kg3
{[%clk 0:00:31.5]} 29... e3 {[%clk 0:02:26.4]} 30. Bxb7 {[%clk 0:00:20.3]} 30...
e2 {[%clk 0:02:14.7]} 0-1

[Event "Live Chess"]
[Site "Chess.com"]
[Date "2024.06.01"]
[Round "-"]
[White "Queensandpawns"]
[Black "Bradfield133"]
[Result "1-0"]
[WhiteElo "2383"]
[BlackElo "1922"]
[TimeControl "300"]
[EndTime "13:03:10 PDT"]
[Termination "Queensandpawns won on time"]

1. e4 {[%clk 0:04:59.2]} 1... c5 {[%clk 0:04:46.2]} 2. b4 {[%clk 0:04:57.3]}
2... cxb4 {[%clk 0:04:44.2]} 3. c3 {[%clk 0:04:57.2]} 3... e6 {[%clk 0:04:42.7]}
4. Nf3 {[%clk 0:04:55.1]} 4... Nc6 {[%clk 0:04:39.2]} 5. Bc4 {[%clk 0:04:54]}
5... b6 {[%clk 0:04:28.6]} 6. O-O {[%clk 0:04:52.1]} 6... Bb7 {[%clk 0:04:27]}
7. cxb4 {[%clk 0:04:51.8]} 7... Bxb4 {[%clk 0:04:23.8]} 8. Nc3 {[%clk
0:04:51.4]} 8... Rc8 {[%clk 0:04:13.7]} 9. Bb2 {[%clk 0:04:50]} 9... Nge7 {[%clk
0:04:04.3]} 10. Nb5 {[%clk 0:04:42.3]} 10... a6 {[%clk 0:03:56.1]} 11. Nc3
{[%clk 0:04:32.4]} 11... O-O {[%clk 0:03:45.5]} 12. a3 {[%clk 0:04:30.4]} 12...
Bd6 {[%clk 0:03:41.8]} 13. d4 {[%clk 0:04:27.5]} 13... Bf4 {[%clk 0:03:19]} 14.
e5 {[%clk 0:04:24]} 14... Nxe5 {[%clk 0:03:12.5]} 15. Nxe5 {[%clk 0:04:18.8]}
15... Bxe5 {[%clk 0:03:09.9]} 16. dxe5 {[%clk 0:04:18.7]} 16... Rxc4 {[%clk
0:03:07.8]} 17. Ne2 {[%clk 0:04:18.2]} 17... Nf5 {[%clk 0:02:54.4]} 18. Rc1
{[%clk 0:04:13.5]} 18... Qc7 {[%clk 0:02:51.1]} 19. Qd3 {[%clk 0:04:10.1]} 19...
b5 {[%clk 0:02:42.3]} 20. Bc3 {[%clk 0:04:00.4]} 20... Rc8 {[%clk 0:02:38.7]}
21. Bd2 {[%clk 0:03:57.5]} 21... Qc6 {[%clk 0:02:32.2]} 22. f3 {[%clk
0:03:48.6]} 22... Qb6+ {[%clk 0:02:22.9]} 23. Kh1 {[%clk 0:03:43.9]} 23... Rxc1
{[%clk 0:02:20.2]} 24. Rxc1 {[%clk 0:03:43.8]} 24... Rxc1+ {[%clk 0:02:17.5]}
25. Bxc1 {[%clk 0:03:43.7]} 25... Bd5 {[%clk 0:02:11.9]} 26. Nc3 {[%clk
0:03:41]} 26... Ne7 {[%clk 0:02:06.6]} 27. Bg5 {[%clk 0:03:39.2]} 27... Qf2
{[%clk 0:01:37]} 28. h4 {[%clk 0:03:25.4]} 28... Nf5 {[%clk 0:01:10.6]} 29. Nxd5
{[%clk 0:03:00.3]} 29... Ng3+ {[%clk 0:01:07.4]} 30. Kh2 {[%clk 0:02:58.9]}
30... exd5 {[%clk 0:01:00.4]} 31. Qxd5 {[%clk 0:02:55.1]} 31... h6 {[%clk
0:00:58.2]} 32. Bf4 {[%clk 0:02:51.4]} 32... Ne2 {[%clk 0:00:54.8]} 33. Qa8+
{[%clk 0:02:47.3]} 33... Kh7 {[%clk 0:00:52.3]} 34. Qe4+ {[%clk 0:02:47.2]}
34... g6 {[%clk 0:00:49.7]} 35. Be3 {[%clk 0:02:41.7]} 35... Qg3+ {[%clk
0:00:41.9]} 36. Kh1 {[%clk 0:02:39.6]} 36... Qxh4+ {[%clk 0:00:40.9]} 37. Qxh4
{[%clk 0:02:37.4]} 1-0

[Event "Live Chess"]
[Site "Chess.com"]
[Date "2024.06.01"]
[Round "-"]
[White "WorcesterYork"]
[Black "WilliamofOrange16th"]
[Result "1-0"]
[WhiteElo "2500"]
[BlackElo "1973"]
[TimeControl "300"]
[EndTime "13:03:13 PDT"]
[Termination "WorcesterYork won by resignation"]

1. e4 {[%clk 0:04:57.4]} 1... d6 {[%clk 0:04:59.1]} 2. d4 {[%clk 0:04:55.2]}
2... Nf6 {[%clk 0:04:55.8]} 3. Nc3 {[%clk 0:04:54.8]} 3... Nbd7 {[%clk
0:04:53.8]} 4. Nge2 {[%clk 0:04:52.5]} 4... e5 {[%clk 0:04:46]} 5. h3 {[%clk
0:04:47.7]} 5... exd4 {[%clk 0:04:38.6]} 6. Nxd4 {[%clk 0:04:46.4]} 6... Nc5
{[%clk 0:04:38.1]} 7. Bd3 {[%clk 0:04:44.1]} 7... a5 {[%clk 0:04:35.7]} 8. O-O
{[%clk 0:04:43.2]} 8... Be7 {[%clk 0:04:34]} 9. f4 {[%clk 0:04:42.2]} 9... O-O
{[%clk 0:04:31.2]} 10. Qf3 {[%clk 0:04:41.4]} 10... c6 {[%clk 0:04:23.5]} 11.
Be3 {[%clk 0:04:40.2]} 11... Qc7 {[%clk 0:04:15.3]} 12. Rae1 {[%clk 0:04:35.2]}
12... b5 {[%clk 0:04:09.5]} 13. Kh1 {[%clk 0:04:34.5]} 13... b4 {[%clk
0:04:08.5]} 14. Nce2 {[%clk 0:04:33.4]} 14... d5 {[%clk 0:04:03.4]} 15. e5
{[%clk 0:04:32.3]} 15... Nfe4 {[%clk 0:03:59.7]} 16. Ng3 {[%clk 0:04:31.3]}
16... Nxd3 {[%clk 0:03:53]} 17. cxd3 {[%clk 0:04:29.1]} 17... Nxg3+ {[%clk
0:03:52.2]} 18. Qxg3 {[%clk 0:04:29]} 18... c5 {[%clk 0:03:50.2]} 19. Nf3 {[%clk
0:04:27.9]} 19... d4 {[%clk 0:03:48]} 20. Bc1 {[%clk 0:04:26.8]} 20... Bf5
{[%clk 0:03:34.1]} 21. Nd2 {[%clk 0:04:23.3]} 21... Qd8 {[%clk 0:03:21.1]} 22.
Qf3 {[%clk 0:04:22.2]} 22... h5 {[%clk 0:03:07.8]} 23. g4 {[%clk 0:04:20.6]}
23... hxg4 {[%clk 0:02:54.4]} 24. hxg4 {[%clk 0:04:20.5]} 24... Be6 {[%clk
0:02:49.1]} 25. Kg2 {[%clk 0:04:15.6]} 25... Bd5 {[%clk 0:02:47.4]} 26. Ne4
{[%clk 0:04:14.1]} 26... a4 {[%clk 0:02:20.8]} 27. Rh1 {[%clk 0:04:13]} 27... f5
{[%clk 0:02:11.2]} 28. exf6 {[%clk 0:04:06.2]} 28... Bxf6 {[%clk 0:02:08.1]} 29.
Kg3 {[%clk 0:04:05.2]} 29... g5 {[%clk 0:01:56.6]} 30. f5 {[%clk 0:04:03]} 30...
Be5+ {[%clk 0:01:54.8]} 31. Kg2 {[%clk 0:04:02]} 31... Kg7 {[%clk 0:01:37.8]}
32. Rh5 {[%clk 0:03:59]} 32... Bxe4 {[%clk 0:01:20.2]} 33. Qxe4 {[%clk
0:03:54.2]} 33... Bf6 {[%clk 0:01:18.7]} 34. Reh1 {[%clk 0:03:51.4]} 1-0

[Event "Live Chess"]
[Site "Chess.com"]
[Date "2024.06.01"]
[Round "-"]
[White "Duke_of_Bebington"]
[Black "WelshTiger"]
[Result "0-1"]
[WhiteElo "1592"]
[BlackElo "2543"]
[TimeControl "300"]
[EndTime "13:03:38 PDT"]
[Termination "WelshTiger won by resignation"]

1. e4 {[%clk 0:04:57.4]} 1... c5 {[%clk 0:04:58.8]} 2. c3 {[%clk 0:04:56]} 2...
g6 {[%clk 0:04:55.7]} 3. d4 {[%clk 0:04:54.3]} 3... cxd4 {[%clk 0:04:55.1]} 4.
cxd4 {[%clk 0:04:53.7]} 4... d5 {[%clk 0:04:54]} 5. e5 {[%clk 0:04:48.9]} 5...
Bg7 {[%clk 0:04:52.1]} 6. Nc3 {[%clk 0:04:46.1]} 6... Nh6 {[%clk 0:04:50.7]} 7.
Bd3 {[%clk 0:04:43.2]} 7... Nf5 {[%clk 0:04:48.6]} 8. Nf3 {[%clk 0:04:42.3]}
8... Nc6 {[%clk 0:04:43.7]} 9. Be3 {[%clk 0:04:39.4]} 9... Nxe3 {[%clk
0:04:37.4]} 10. fxe3 {[%clk 0:04:39.3]} 10... f6 {[%clk 0:04:36.9]} 11. exf6
{[%clk 0:04:34.5]} 11... exf6 {[%clk 0:04:36.1]} 12. O-O {[%clk 0:04:31.5]}
12... Be6 {[%clk 0:04:26.7]} 13. a3 {[%clk 0:04:26.7]} 13... O-O {[%clk
0:04:24.7]} 14. Qd2 {[%clk 0:04:11.9]} 14... Rc8 {[%clk 0:04:21.8]} 15. b4
{[%clk 0:04:02]} 15... Re8 {[%clk 0:04:19.8]} 16. Rae1 {[%clk 0:03:55.5]} 16...
Bf7 {[%clk 0:04:15.5]} 17. Na4 {[%clk 0:03:48.4]} 17... b6 {[%clk 0:04:12.5]}
18. Nc3 {[%clk 0:03:46.8]} 18... Qd6 {[%clk 0:04:08.2]} 19. e4 {[%clk
0:03:38.9]} 19... dxe4 {[%clk 0:04:06.2]} 20. Nxe4 {[%clk 0:03:37.5]} 20... Qd7
{[%clk 0:04:01.2]} 21. Bc2 {[%clk 0:03:22.5]} 21... Bc4 {[%clk 0:03:52.3]} 22.
Rf2 {[%clk 0:03:14.7]} 22... Rcd8 {[%clk 0:03:50.6]} 23. Qc3 {[%clk 0:02:51.5]}
23... Bd5 {[%clk 0:03:37.3]} 24. Nfd2 {[%clk 0:02:37.8]} 24... f5 {[%clk
0:03:33.6]} 25. Ng5 {[%clk 0:02:22.6]} 25... Bxd4 {[%clk 0:03:31.2]} 26. Rxe8+
{[%clk 0:02:19.7]} 26... Rxe8 {[%clk 0:03:28.4]} 27. Qh3 {[%clk 0:02:15]} 27...
Re1+ {[%clk 0:03:19.4]} 28. Nf1 {[%clk 0:02:13.7]} 28... Bxf2+ {[%clk
0:03:10.6]} 29. Kxf2 {[%clk 0:02:11.5]} 29... Re7 {[%clk 0:02:35.8]} 30. Ne3
{[%clk 0:02:07.1]} 30... Ba2 {[%clk 0:02:29.3]} 31. Nf3 {[%clk 0:02:01.4]} 31...
Nd4 {[%clk 0:02:24.9]} 32. Nxd4 {[%clk 0:01:58.8]} 32... Qxd4 {[%clk 0:02:24]}
0-1